Cogmind - Beta 11.1 @@@ ROGUE MODE // 2022.04.23 @ 22:38:01 Player: Runia Result: Destroyed by C-40 Crusher with Compactor Performance ------------- Evolutions (4) 2000 Regions Visited (12) 2400 Robots Destroyed (259) 1295 Value Destroyed (7488) 7488 Prototype IDs (28) 560 Alien Tech Used (0) 0 Bonus (-894) -894 TOTAL SCORE: 12849 Bonus ------- High Alert Combat Kills 379 Follower Combat Kills 290 Met Data Miner 300 Friendly Fire -1863 Cogmind --------- Core Integrity 0/850 Matter 300/300 Energy 100/100 System Corruption 1% Temperature Cool (0) Movement Core (50) Location -6/Waste Parts ------- > --- POWER (1) -------- (None) > --- PROPULSION (4) --- (None) > --- UTILITY (7) ------ Coolant Injector Improved Signal Interpreter Advanced Melee Analysis Suite > --- WEAPON (3) ------- (None) > --- INVENTORY (5) ---- Angular Momentum Engine Improved Cooling System Improved Medium Armor Plating Improved Grenade Launcher Great Maul Peak State ------------ > --- POWER ------------ Antimatter Reactor > --- PROPULSION ------- Armored Treads Medium Treads Enhanced Flexi-carbon Leg Enhanced Flexi-carbon Leg > --- UTILITY ---------- Huge Storage Unit Experimental Sensor Array Improved Signal Interpreter Improved Terrain Scanner Improved Terrain Scan Processor 0b10 Decoder Chip [Looter] Layered Medium Armor Plating > --- WEAPON ----------- Beamcaster Wave Gun Phase Cannon > --- INVENTORY -------- Neutrino Core Light Treads Advanced Heat Sink Advanced Heat Sink Improved Cooling System Improved Cooling System Advanced Energy Well High-capacity Matter Pod Triangulator Advanced Melee Analysis Suite Target Analyzer Particle Charger Improved Medium Armor Plating Experimental Thermal Shield Improved Shield Generator Long-range Tractor Beam Neutron Cannon Heavy Machine Gun Advanced EMP Blaster Plasma Cutter Heavy Mace [Rating: 82] Favorites ----------- Power Reinforced Deuterium Engine Engine Reinforced Deuterium Engine Power Core Neutrino Core Reactor Antimatter Reactor Propulsion Light Treads Treads Light Treads Leg Enhanced Flexi-carbon Leg Wheel Wheel Utility Huge Storage Unit Device Improved Heat Sink Storage Huge Storage Unit Processor Improved Signal Interpreter Hackware System Shield Protection Hardened Medium Armor Plating Weapon Precision Beam Rifle Energy Gun Precision Beam Rifle Energy Cannon Heavy Particle Cannon Ballistic Gun Shotgun Launcher Missile Launcher Special Weapon Plasma Cutter Impact Weapon Heavy Mace Slashing Weapon Greatsword Build | -11 -10 -10 -9 -9 -8 -7 -7 -7 -7 -6 -6 -6 ------- Run | Scr Mat Min Mat Min Mat Fac Low Low Dat Pro Fac Was Slots Evolved 8 | . . . 2 . 2 2 . . . . 2 . Power . | . . . . . . . . . . . . . Propulsion 2 | . . . 1 . . 1 . . . . . . Utility 5 | . . . 1 . 1 1 . . . . 2 . Weapon 1 | . . . . . 1 . . . . . . . Parts Attached 238 | 2 7 2 33 . 36 42 13 17 3 28 50 5 Power 15 | . 1 1 4 . 1 3 . . . 2 3 . Engine 12 | . 1 1 4 . 1 2 . . . 1 2 . Core 2 | . . . . . . 1 . . . . 1 . Reactor 1 | . . . . . . . . . . 1 . . Propulsion 52 | 2 1 1 11 . 7 8 1 4 . 2 14 1 Treads 30 | 2 . . 6 . 7 6 1 4 . . 3 1 Leg 12 | . . . 3 . . . . . . 2 7 . Wheel 10 | . 1 1 2 . . 2 . . . . 4 . Hover . | . . . . . . . . . . . . . Flight . | . . . . . . . . . . . . . Utility 77 | . 3 . 5 . 9 18 3 5 . 10 21 3 Device 48 | . 1 . 1 . 4 12 3 3 . 7 15 2 Storage 4 | . 2 . 1 . . . . . . 1 . . Processor 7 | . . . . . 1 2 . . . . 3 1 Hackware 1 | . . . . . 1 . . . . . . . Protection 17 | . . . 3 . 3 4 . 2 . 2 3 . Artifact . | . . . . . . . . . . . . . Weapon 94 | . 2 . 13 . 19 13 9 8 3 14 12 1 Energy Gun 33 | . . . 8 . 9 7 3 2 1 2 1 . Energy Cannon 13 | . . . . . 1 1 2 1 1 2 4 1 Ballistic Gun 12 | . 2 . 3 . . 1 . 1 1 3 1 . Ballistic Cannon . | . . . . . . . . . . . . . Launcher 15 | . . . 1 . 4 1 2 2 . 5 . . Special Weapon 1 | . . . . . . . . . . 1 . . Impact Weapon 19 | . . . 1 . 5 3 2 2 . 1 5 . Slashing Weapon 1 | . . . . . . . . . . . 1 . Piercing Weapon . | . . . . . . . . . . . . . Special Melee Weapon . | . . . . . . . . . . . . . Unidentified Prototypes 14 | . . . 4 . 1 1 . . . 3 4 1 Corrupted Parts 1 | . . . . . . . . . . 1 . . System Corruption 3 | . . . . . . . . . . 3 . . Parts Lost 57 | . 1 . 8 2 1 5 1 6 . 4 20 9 Power 6 | . . . 2 . . 1 . . . . 3 . Propulsion 23 | . 1 . 3 . 1 1 1 2 . 2 9 3 Utility 12 | . . . 1 2 . . . 1 . 1 3 4 Weapon 16 | . . . 2 . . 3 . 3 . 1 5 2 Highest Loss Streak 9 | . 1 . 3 2 1 3 1 6 . 4 9 9 To Critical Strikes 2 | . . . . . . . . 1 . . . 1 Average Slot Usage (%) 93 | . 98 100 94 93 98 93 91 91 70 92 87 89 Engine 7 | . 14 14 10 11 9 6 7 7 7 2 3 5 Treads 18 | . 20 14 17 33 26 18 14 26 30 25 6 7 Leg 3 | . . . 5 . . . . . . 3 11 11 Wheel 4 | . 7 14 6 . . 5 7 1 . . 4 . Device 12 | . 12 14 11 8 14 13 13 8 7 7 13 12 Storage 8 | . 14 14 11 11 9 7 7 7 7 7 6 5 Processor 7 | . . . . . 4 8 8 7 7 7 21 24 Protection 5 | . . . 10 7 4 6 7 7 7 8 3 1 Energy Gun 9 | . . . 16 22 18 13 12 7 . 7 3 . Energy Cannon 3 | . . . . . 5 6 6 7 . 5 2 3 Ballistic Gun 6 | . 28 28 5 . . . 1 5 . 6 . . Impact Weapon 1 | . . . . . 3 . 1 . . 1 5 14 Naked Turns . | . . . . . . . . . . . . . Heaviest Build 132 | 10 30 36 102 102 119 124 119 131 130 132 125 115 Greatest Support 100 | 40 40 10 63 63 63 91 28 80 80 80 71 100 Greatest Overweight (x) 32 | . 2 3 11 1 1 4 4 4 1 2 32 2 Average Overweight (x) 2 | . 1 2 2 1 1 3 4 1 1 1 3 1 Largest Inventory Capacity 25 | 8 15 15 25 25 25 25 25 25 25 25 25 25 Average Capacity 22 | 8 13 15 17 25 25 25 25 25 25 25 25 21 Most Carried 25 | 6 9 10 21 22 25 25 25 25 19 23 25 25 Average Carried 18 | 3 7 9 13 21 24 24 24 17 16 19 21 21 Final Capacity 25 | 8 15 15 25 25 25 25 25 25 25 25 25 5 Final Carried 25 | 2 9 10 20 22 25 25 25 16 16 20 25 5 Class Distribution -------------------- 32% | Mutant 19% | Scavenger-Mutant 19% | Scavenger-Skirmisher 14% | Scavenger-Tank 5% | Scavenger-Gunner 3% | Gunner Dominant Class ---------------- Mutant | -10/Materials Mutant | -10/Mines Scavenger-Mutant | -9/Materials Scavenger-Mutant | -9/Mines Scavenger-Tank | -8/Materials Scavenger-Skirmisher | -7/Factory Scavenger-Skirmisher | -7/Lower Caves Scavenger-Skirmisher | -7/Lower Caves Scavenger-Mutant | -7/Data Miner Scavenger-Tank | -6/Proximity Caves Mutant | -6/Factory Mutant | -6/Waste Resources | -11 -10 -10 -9 -9 -8 -7 -7 -7 -7 -6 -6 -6 ----------- Run | Scr Mat Min Mat Min Mat Fac Low Low Dat Pro Fac Was Matter Collected 4456 | 200 755 298 633 . 394 442 206 241 . 509 718 60 Remotely . | . . . . . . . . . . . . . Salvage Created 10407 | . 554 507 2069 230 2003 1351 206 613 . 1101 1773 . Parts 465 | . 41 38 97 13 100 57 10 20 . 32 57 . Haulers Intercepted 13 | . 2 . 6 . 4 . . . . . 1 . Recyclers Shooed 10 | . 1 1 2 1 2 . . . . . 3 . Parts Field Recycled . | . . . . . . . . . . . . . Retrieved Matter . | . . . . . . . . . . . . . Parts Self-Destructed 26 | . . . . . . . 4 9 . 13 . . Prevented 12 | . . . . . . . . 5 . 7 . . Kills | -11 -10 -10 -9 -9 -8 -7 -7 -7 -7 -6 -6 -6 ------- Run | Scr Mat Min Mat Min Mat Fac Low Low Dat Pro Fac Was Combat Hostiles Destroyed 163 | . 9 6 30 6 32 26 4 11 . 20 19 . Melee 12 | . . . . . 3 . . . . . 9 . Guns 79 | . 9 6 26 6 13 8 4 2 . 3 2 . Cannons 25 | . . . . . 4 15 . 2 . 1 3 . AOE 37 | . . . 3 . 8 3 . 7 . 15 1 . Classes Destroyed 19 | . 8 . 5 1 2 2 . . . . 1 . Worker 23 | . 3 1 7 . 5 1 . . . . 6 . Builder 14 | . 3 1 3 . 2 1 . . . . 4 . Tunneler 9 | . 2 4 1 . 2 . . . . . . . Hauler 13 | . 2 . 6 . 4 . . . . . 1 . Recycler 17 | . 1 2 6 1 4 . . . . . 3 . Mechanic 2 | . . . 1 . . 1 . . . . . . Operator 2 | . . . 1 . 1 . . . . . . . Watcher 12 | . 1 . 5 . 4 . . . . . 2 . Swarmer 36 | . 5 . 9 2 10 7 . . . 3 . . Grunt 70 | . 4 6 12 3 12 7 . 5 . 12 9 . Brawler 10 | . . . 3 . 1 . . 3 . 3 . . Duelist 6 | . . . 1 . . . . 2 . 2 1 . Protector 1 | . . . . . . . . . . . 1 . Sentry 16 | . . . 5 . 7 2 . 1 . 1 . . Demolisher 1 | . . . . 1 . . . . . . . . Specialist 10 | . . . . . . 8 . . . . 2 . Hunter 3 | . . . . . 1 . . . . . 2 . Programmer 5 | . . . . . . 1 . . . . 4 . Heavy 2 | . . . . . 1 1 . . . . . . Enhanced Grunt 1 | . . . . . . . . . . 1 . . Decomposer 1 | . . . . . . . . 1 . . . . Thug 6 | . . 1 1 . . . 4 . . . . . Best Kill Streak 12 | . 4 3 8 3 8 5 4 11 . 12 5 . Combat Bots Only 12 | . 3 2 6 3 5 5 4 11 . 12 4 . Max Kills in Single Turn 4 | . 2 2 3 2 4 2 1 3 . 4 2 . Gunslinging 1 | . . . 1 1 . . . . . . . . Exploded 4 | . . . 2 . 3 2 . 3 . 4 1 . Melee 1 | . . . . . 1 . . . . . 1 . Uniques/NPCs Destroyed . | . . . . . . . . . . . . . Combat | -11 -10 -10 -9 -9 -8 -7 -7 -7 -7 -6 -6 -6 -------- Run | Scr Mat Min Mat Min Mat Fac Low Low Dat Pro Fac Was Damage Taken 12518 | . 480 212 1302 454 1245 1720 566 1473 . 1255 3271 540 Core 1939 | . 41 43 193 185 226 192 65 38 . 106 650 200 Absorbed by Shields 128 | . . . . . . 128 . . . . . . Core Remaining (%) 54 | 100 . 66 . 5 58 . . . . 42 . . Volleys Fired 508 | . 52 34 131 14 69 63 20 21 . 50 39 15 Largest 3 | . 2 2 2 2 3 3 3 3 . 3 3 1 Hottest 241 | . 46 46 122 122 197 197 211 211 . 181 241 90 Shots Fired 1112 | . 104 68 259 28 187 176 56 47 . 84 88 15 Gun 874 | . 104 68 257 28 154 116 36 29 . 38 44 . Cannon 186 | . . . . . 26 57 18 13 . 13 44 15 Launcher 34 | . . . 2 . 7 3 2 5 . 15 . . Special 18 | . . . . . . . . . . 18 . . Kinetic 293 | . 104 68 77 . . . 11 10 . 18 5 . Thermal 783 | . . . 180 28 180 173 43 32 . 51 81 15 Explosive 15 | . . . 2 . 3 . 2 1 . 7 . . Electromagnetic 21 | . . . . . 4 3 . 4 . 8 2 . Robot Hit Streak 44 | . 8 12 36 38 44 12 7 18 . 12 15 7 Robot Miss Streak 8 | . 7 4 8 1 1 4 5 2 . 2 3 1 Penetration Max . | . . . . . . . . . . . . . Secondary Targets 8 | . . . 5 3 . . . . . . . . Max Gunslinging Chain 1 | . . . 1 1 . . . . . . . . Shots Hit Robots 841 | . 72 53 173 21 143 116 42 37 . 63 109 12 Core Hits 424 | . 36 29 88 11 69 53 22 30 . 52 31 3 Critical Kills 2 | . . . . . 1 . . . . . 1 . Critical Parts Destroyed 8 | . . 1 . . 2 . . . . . 5 . Critical Strikes 46 | . . 1 10 1 12 7 . 2 . 2 11 . Burn 33 | . . . 10 1 9 7 . 2 . 2 2 . Meltdown 2 | . . . . . 1 . . . . . 1 . Destroy 1 | . . 1 . . . . . . . . . . Smash 7 | . . . . . 2 . . . . . 5 . Sever 3 | . . . . . . . . . . . 3 . Melee Attacks 142 | . . . 1 . 16 5 18 3 . 4 95 . Impact 115 | . . . 1 . 16 5 18 3 . 4 68 . Slashing 27 | . . . . . . . . . . . 27 . Piercing . | . . . . . . . . . . . . . Sneak Attacks 13 | . . . . . 4 . . . . . 9 . Combat Hostiles . | . . . . . . . . . . . . . Follow-up Attacks 1 | . . . . . . . . . . . 1 . Damage Inflicted 22102 | . 918 847 3124 355 3621 2630 824 1683 . 2866 4819 415 Guns 10596 | . 918 847 2923 355 1992 1314 546 428 . 554 719 . Cannons 3546 | . . . . . 450 1006 245 218 . 219 993 415 Explosions 4395 | . . . 201 . 567 310 33 1004 . 1992 288 . Melee 3464 | . . . . . 612 . . 33 . . 2819 . Ramming . | . . . . . . . . . . . . . Kinetic 3094 | . 918 847 792 . . . 167 87 . 213 70 . Thermal 11973 | . . . 2131 355 2442 2451 624 912 . 756 1887 415 Explosive 2242 | . . . 201 . 427 . 33 283 . 1298 . . Electromagnetic 1329 | . . . . . 140 179 . 368 . 599 43 . Impact 2505 | . . . . . 612 . . 33 . . 1860 . Slashing 959 | . . . . . . . . . . . 959 . Piercing . | . . . . . . . . . . . . . Highest Corruption 6 | . . . . . . . . 2 2 6 3 1 Average Corruption 2 | . . . . . . . . 1 2 3 1 1 Corruption Purged 3 | . . . . . . . . . . . 3 . Corruption Blocked . | . . . . . . . . . . . . . Effects 56 | . . . . . . . . 11 3 27 15 . Message Errors 12 | . . . . . . . . 2 . 6 4 . Matter Fused 12 | . . . . . . . . 4 1 6 1 . Heat Flow Errors 8 | . . . . . . . . 1 2 4 1 . Energy Discharges 4 | . . . . . . . . 1 . 2 1 . Parts Rejected 2 | . . . . . . . . . . 2 . . Data Loss (minor) 10 | . . . . . . . . 3 . 1 6 . Data Loss (major) 5 | . . . . . . . . . . 4 1 . Misfires 2 | . . . . . . . . . . 2 . . Alerts 1 | . . . . . . . . . . . 1 . Overload Shots . | . . . . . . . . . . . . . Overflow Damage 1338 | . . . . . 262 1 . 11 . 44 1020 . Projectiles 23 | . . . . . . 1 . . . . 22 . Explosions 119 | . . . . . . . . 11 . 44 64 . Melee 1196 | . . . . . 262 . . . . . 934 . Knockbacks 11 | . . . . . 2 . . . . . 9 . Impact 10 | . . . . . 2 . . . . . 8 . Kinetic . | . . . . . . . . . . . . . Secondary 1 | . . . . . . . . . . . 1 . Self-Inflicted Damage 503 | . . . . . 20 13 . 282 . 188 . . Shots 17 | . . . . . 1 1 . 8 . 7 . . Rammed . | . . . . . . . . . . . . . Targets Rammed . | . . . . . . . . . . . . . Kicked . | . . . . . . . . . . . . . Crushed . | . . . . . . . . . . . . . Highest Temperature 391 | . 66 . 225 135 391 123 253 302 207 301 378 . Average Temperature 83 | . 31 . 51 55 105 41 130 122 97 89 98 . Received Heat Transfer 2909 | . 237 111 291 36 378 260 126 189 . 274 1007 . Effects 11 | . . . . . 7 . 3 . . 1 . . Energy Bleed 1 | . . . . . . . . . . 1 . . Interference 9 | . . . . . 6 . 3 . . . . . Damage (minor) 1 | . . . . . 1 . . . . . . . Siege Activations . | . . . . . . . . . . . . . Robots Corrupted 2 | . . . . . . . . . . 1 1 . Combat Hostiles 1 | . . . . . . . . . . 1 . . Parts Fried 21 | . . . . . 8 . . . . 1 12 . Impact Corruptions 36 | . . . . . 6 . . . . . 30 . Robots Melted 7 | . . . 1 . 4 . . . . . 2 . Combat Hostiles 6 | . . . 1 . 3 . . . . . 2 . Parts Melted 74 | . . . 16 1 29 21 . . . 3 4 . Heat Transferred 23657 | . . . 5180 851 5661 4873 1073 1323 . 1839 2302 555 Parts Sabotaged . | . . . . . . . . . . . . . Parts Stolen . | . . . . . . . . . . . . . Parts Stripped . | . . . . . . . . . . . . . Power Chain Reactions 7 | . . . . . 1 1 . 3 . 2 . . Missiles Intercepted . | . . . . . . . . . . . . . Alert | -11 -10 -10 -9 -9 -8 -7 -7 -7 -7 -6 -6 -6 ------- Run | Scr Mat Min Mat Min Mat Fac Low Low Dat Pro Fac Was Peak Influence 661 | . 143 127 638 408 661 618 . . . . 293 79 Initial 284 | . . 45 5 248 154 284 . . . . 103 79 Average 253 | . 75 62 333 343 401 369 . . . . 174 63 Maximum Alert Level 2 | . . . 2 2 2 2 . . . . 1 . Low Security (%) 44 | 100 100 100 29 . 14 7 . . . . 53 100 Level 1 32 | . . . 36 98 27 56 . . . . 46 . Level 2 22 | . . . 33 1 57 35 . . . . . . Level 3 . | . . . . . . . . . . . . . Level 4 . | . . . . . . . . . . . . . Level 5 . | . . . . . . . . . . . . . High Security . | . . . . . . . . . . . . . Max Security . | . . . . . . . . . . . . . Squads Dispatched 36 | . 2 . 6 . 7 8 . 1 . 1 11 . Investigation 8 | . 1 . 3 . 1 1 . . . . 2 . Extermination 5 | . . . . . . 2 . . . . 3 . Reinforcement 14 | . 1 . 2 . 2 5 . . . . 4 . Assault 4 | . . . 1 . . . . 1 . 1 1 . Garrison 5 | . . . . . 4 . . . . . 1 . Intercept . | . . . . . . . . . . . . . Searches Triggered . | . . . . . . . . . . . . . Data Miner Redirects 1 | . . . . . . . . . . . 1 . Construction Impeded 1 | . . . . . . . . . . . 1 . Haulers Reinforced 1 | . . . . . . . . . . . 1 . Active Scanning Responses . | . . . . . . . . . . . . . Cargo Convoy Interrupts . | . . . . . . . . . . . . . Stealth | -11 -10 -10 -9 -9 -8 -7 -7 -7 -7 -6 -6 -6 --------- Run | Scr Mat Min Mat Min Mat Fac Low Low Dat Pro Fac Was Distress Signals 11 | . 2 1 2 . 2 2 . . . . 2 . Communications Jammed . | . . . . . . . . . . . . . Distress Signals . | . . . . . . . . . . . . . Times Spotted 243 | . 15 8 48 8 53 29 5 13 . 24 34 6 Peak Tracking Total 11 | . 3 2 8 3 6 5 4 11 . 9 6 5 Tactical Retreats 18 | . 2 . 2 . 10 1 . . . 2 1 . Traps | -11 -10 -10 -9 -9 -8 -7 -7 -7 -7 -6 -6 -6 ------- Run | Scr Mat Min Mat Min Mat Fac Low Low Dat Pro Fac Was Traps Triggered 9 | . 1 . 1 . 4 . . . . . 3 . Indirectly 3 | . . . . . 3 . . . . . . . Trap Hack Attempts . | . . . . . . . . . . . . . Triggered . | . . . . . . . . . . . . . Disarmed . | . . . . . . . . . . . . . Reprogrammed . | . . . . . . . . . . . . . Reused . | . . . . . . . . . . . . . Traps Extracted . | . . . . . . . . . . . . . Installed . | . . . . . . . . . . . . . Triggered 1 | . . . . . 1 . . . . . . . Machines | -11 -10 -10 -9 -9 -8 -7 -7 -7 -7 -6 -6 -6 ---------- Run | Scr Mat Min Mat Min Mat Fac Low Low Dat Pro Fac Was Machines Disabled 13 | . . . 1 1 2 1 . 1 . 1 6 . Max in Single Turn 4 | . . . 1 1 1 1 . 1 . 1 4 . Garrison Access 2 | . . . . . . . . . . . 2 . Machines Sabotaged . | . . . . . . . . . . . . . Garrisons Compromised . | . . . . . . . . . . . . . Overloaded Fab Kills . | . . . . . . . . . . . . . Hacking | -11 -10 -10 -9 -9 -8 -7 -7 -7 -7 -6 -6 -6 --------- Run | Scr Mat Min Mat Min Mat Fac Low Low Dat Pro Fac Was Machines Accessed 38 | . 6 1 8 . 9 5 1 . 4 . 4 . Terminals 23 | . 6 . 6 . 6 2 1 . . . 2 . Fabricators 2 | . . . . . . 2 . . . . . . Repair Stations 2 | . . . . . 1 1 . . . . . . Recycling Units 2 | . . . 2 . . . . . . . . . Scanalyzers 2 | . . . . . 2 . . . . . . . Garrison Access 2 | . . . . . . . . . . . 2 . Total Hacks 109 | . 15 1 22 . 23 11 1 . 29 . 7 . Successful 62 | . 7 1 12 . 7 4 1 . 29 . 1 . Failed 47 | . 8 . 10 . 16 7 . . . . 6 . Catastrophic 7 | . . . . . 4 1 . . . . 2 . Database Lockouts . | . . . . . . . . . . . . . Manual 28 | . 2 . 8 . 10 5 . . . . 3 . Terminals 63 | . 15 . 20 . 17 5 1 . . . 5 . Fabricators 5 | . . . . . . 5 . . . . . . Repair Stations 3 | . . . . . 2 1 . . . . . . Recycling Units 2 | . . . 2 . . . . . . . . . Scanalyzers 4 | . . . . . 4 . . . . . . . Garrison Access 2 | . . . . . . . . . . . 2 . Terminal Hacks 54 | . 7 1 10 . 5 1 1 . 29 . . . Record 12 | . . . . . . . 1 . 11 . . . Part Schematic 13 | . . . . . . 1 . . 12 . . . Robot Schematic 3 | . . . . . . . . . 3 . . . Prototype ID Bank 6 | . 1 . 2 . . . . . 3 . . . Open Door 1 | . . 1 . . . . . . . . . . Branch Access Points 1 | . 1 . . . . . . . . . . . Terminal Index 4 | . 1 . 2 . 1 . . . . . . . Unreport Threat 2 | . . . . . 2 . . . . . . . Locate Traps 2 | . 1 . 1 . . . . . . . . . Dispatch Records 1 | . . . . . 1 . . . . . . . Hauler Manifests 1 | . 1 . . . . . . . . . . . Zone Layout 8 | . 2 . 5 . 1 . . . . . . . Fabricator Hacks 1 | . . . . . . 1 . . . . . . Network Status 1 | . . . . . . 1 . . . . . . Repair Station Hacks 1 | . . . . . 1 . . . . . . . Scan Component 1 | . . . . . 1 . . . . . . . Recycling Unit Hacks . | . . . . . . . . . . . . . Scanalyzer 1 | . . . . . 1 . . . . . . . Insert Component 1 | . . . . . 1 . . . . . . . Garrison Access Hacks 1 | . . . . . . . . . . . 1 . Seal Access 1 | . . . . . . . . . . . 1 . Unauthorized Hacks 4 | . . . 2 . . 2 . . . . . . Terminals . | . . . . . . . . . . . . . Fabricators 2 | . . . . . . 2 . . . . . . Report 1 | . . . . . . 1 . . . . . . Haulers 1 | . . . . . . 1 . . . . . . Repair Stations . | . . . . . . . . . . . . . Recycling Units 2 | . . . 2 . . . . . . . . . Tunnel 2 | . . . 2 . . . . . . . . . Scanalyzers . | . . . . . . . . . . . . . Garrison Access . | . . . . . . . . . . . . . Data Cores Recovered . | . . . . . . . . . . . . . Used . | . . . . . . . . . . . . . Hacking Detections 24 | . 4 . 4 . 9 3 1 . . . 3 . Full Trace Events 2 | . . . . . . 1 . . . . 1 . Feedback Events . | . . . . . . . . . . . . . Feedback Blocked . | . . . . . . . . . . . . . Robot Schematics Acquired 3 | . . . . . . . . . 3 . . . Robots Built . | . . . . . . . . . . . . . Authchips . | . . . . . . . . . . . . . Time . | . . . . . . . . . . . . . Total Robot Build Rating . | . . . . . . . . . . . . . Part Schematics Acquired 13 | . . . . . . 1 . . 12 . . . Parts Built . | . . . . . . . . . . . . . Authchips . | . . . . . . . . . . . . . Time . | . . . . . . . . . . . . . Total Part Build Rating . | . . . . . . . . . . . . . Parts Repaired . | . . . . . . . . . . . . . Time . | . . . . . . . . . . . . . Parts Recycled . | . . . . . . . . . . . . . Recycled Matter . | . . . . . . . . . . . . . Retrieved Matter . | . . . . . . . . . . . . . Retrieved Components . | . . . . . . . . . . . . . Parts Scanalyzed 1 | . . . . . 1 . . . . . . . Part Schematics Acquired . | . . . . . . . . . . . . . Parts Damaged . | . . . . . . . . . . . . . Bothacking | -11 -10 -10 -9 -9 -8 -7 -7 -7 -7 -6 -6 -6 ------------ Run | Scr Mat Min Mat Min Mat Fac Low Low Dat Pro Fac Was Used RIF Installer . | . . . . . . . . . . . . . Robots Hacked . | . . . . . . . . . . . . . Non-combat . | . . . . . . . . . . . . . Combat . | . . . . . . . . . . . . . Robot Hacks Applied . | . . . . . . . . . . . . . Relay Couplers Released 3 | . . . . . . . . . . . 3 . Machine Destruction 3 | . . . . . . . . . . . 3 . Fabnet Peak Effective % . | . . . . . . . . . . . . . Robots Rewired 4 | . . . . . . . . 2 . 2 . . Allies Hacked . | . . . . . . . . . . . . . Hacks Repelled . | . . . . . . . . . . . . . Allies | -11 -10 -10 -9 -9 -8 -7 -7 -7 -7 -6 -6 -6 -------- Run | Scr Mat Min Mat Min Mat Fac Low Low Dat Pro Fac Was Total Allies 8 | . . 2 . . . . . 2 . 3 . 1 Largest Group 2 | . . 2 1 . . . . 2 2 2 2 1 Highest-Rated Group 96 | . . 42 31 . . . . 32 32 96 64 31 Highest-Rated Ally 96 | . . 31 31 . . . . 16 16 96 32 31 Total Orders . | . . . . . . . . . . . . . Ally Attacks 64 | . . 5 5 . . . . 14 . 7 12 21 Total Damage 1264 | . . 84 106 . . . . 68 . 156 444 406 Kills 9 | . . 3 1 . . . . . . 1 3 1 Allies Corrupted . | . . . . . . . . . . . . . Allies Melted . | . . . . . . . . . . . . . Intel | -11 -10 -10 -9 -9 -8 -7 -7 -7 -7 -6 -6 -6 ------- Run | Scr Mat Min Mat Min Mat Fac Low Low Dat Pro Fac Was Robot Analysis Total . | . . . . . . . . . . . . . Derelict Logs Recovered 5 | . . 1 . . . . 1 1 . 2 . . Drone Launches . | . . . . . . . . . . . . . Drone Recoveries . | . . . . . . . . . . . . . Decoded 0b10 Intel 138 | . . . . . . . . . . . 134 4 Items 138 | . . . . . . . . . . . 134 4 Exploration | -11 -10 -10 -9 -9 -8 -7 -7 -7 -7 -6 -6 -6 ------------- Run | Scr Mat Min Mat Min Mat Fac Low Low Dat Pro Fac Was Turns Passed 14404 | 8 1105 1225 1532 229 2480 1306 1153 1228 233 1076 2748 81 Spaces Moved 6064 | 3 735 562 647 78 873 530 627 499 93 321 1075 21 Core 10 | . . . 2 . . . . . . . 4 4 Treads 2168 | 3 237 . 125 78 873 128 . 386 93 235 . 10 Legs 692 | . . . 89 . . . . . . 86 510 7 Wheels 3194 | . 498 562 431 . . 402 627 113 . . 561 . Hover . | . . . . . . . . . . . . . Flight . | . . . . . . . . . . . . . Fastest Speed 50 | 160 110 110 115 240 240 145 160 160 245 245 123 50 Average Speed 186 | 160 126 124 159 240 240 177 160 225 245 250 206 195 Slowest Speed 1650 | 160 240 125 600 240 243 240 160 245 245 325 1650 262 Overloaded Moves . | . . . . . . . . . . . . . Propulsion Burnouts . | . . . . . . . . . . . . . Robots Hopped . | . . . . . . . . . . . . . Cave-ins Triggered . | . . . . . . . . . . . . . Exploration Rate (%) 52 | 2 92 86 62 24 74 10 82 74 70 57 36 15 Regions Visited 12 Branch Regions 6 Pre-discovered Areas 5 | . . 1 2 . . . . 1 1 . . . Known Exits Taken 7 | . 1 1 . . . 1 1 1 1 1 . . Unknown Exits Taken 4 | 1 . . 1 1 1 . . . . . . . Scrap Searched 12 | . . 2 . 1 . . 5 3 . 1 . . Spaces Dug 79 | . . . 1 . 17 5 15 2 . 4 35 . Terrain Destroyed 228 | . . . 1 . 36 8 35 19 . 46 83 . Melee 61 | . . . 1 . 4 5 15 2 . 4 30 . Projectile 19 | . . . . . 7 . . . . . 12 . AOE 148 | . . . . . 25 3 20 17 . 42 41 . Terrain Rammed . | . . . . . . . . . . . . . Walls Destroyed . | . . . . . . . . . . . . . Machines Disabled . | . . . . . . . . . . . . . Actions | -11 -10 -10 -9 -9 -8 -7 -7 -7 -7 -6 -6 -6 --------- Run | Scr Mat Min Mat Min Mat Fac Low Low Dat Pro Fac Was Total 7958 | 8 810 1020 885 93 1088 742 700 558 101 493 1415 45 Wait 747 | . 6 416 20 . 41 79 13 2 . 67 101 2 Move 6053 | 2 734 561 646 77 872 529 626 498 92 320 1075 21 Hop . | . . . . . . . . . . . . . Pick Up 120 | . 7 3 28 2 23 8 5 2 3 12 27 . Fast Attach 56 | . 2 . 12 . 6 8 1 1 . 4 21 1 Attach 52 | 2 . . 3 . 5 6 2 9 3 6 16 . Detach . | . . . . . . . . . . . . . Swap 130 | . 5 2 18 . 25 28 10 7 . 18 13 4 Drop 126 | 4 4 4 26 . 32 16 5 2 3 5 23 2 Fire 508 | . 52 34 131 14 69 63 20 21 . 50 39 15 Melee 138 | . . . 1 . 15 5 18 3 . 4 92 . Ram . | . . . . . . . . . . . . . Kick . | . . . . . . . . . . . . . Crush . | . . . . . . . . . . . . . Escape Stasis 8 | . . . . . . . . . . . 8 . Rewire 20 | . . . . . . . . 13 . 7 . . Trap . | . . . . . . . . . . . . . Miscellaneous . | . . . . . . . . . . . . . Route ------- -11/Scrapyard -10/Materials (discovered 4 exits: *Mat x3 / *Min) -10/Mines (discovered 2 exits: *Mat x2) -9/Materials (discovered 4 exits: *Mat / [*Min x2] / [*Sto]) -9/Mines -8/Materials (discovered 2 exits: *Fac x2) -7/Factory -7/Lower Caves -7/Lower Caves (discovered 2 exits: *Fac / *Dat) -7/Data Miner -6/Proximity Caves -6/Factory (discovered 2 exits: [*Fac x2]) -6/Waste History --------- Turn | Location | Event 5 | -11/Scrapyard | Discovered new exit (range 0) 9 | -11/Scrapyard | Entered Materials 22 | -10/Materials | Discovered new exit (range 16) 134 | -10/Materials | Identified exit to Mines 192 | -10/Materials | Discovered new exit (range 11) 310 | -10/Materials | Build established: Mutant 508 | -10/Materials | Discovered new exit (range 16) 548 | -10/Materials | Discovered new exit (range 8) 1114 | -10/Materials | Entered Mines 1135 | -10/Mines | Met a Derelict who couldn't figure out how to use a Trap Extractor 1186 | -10/Mines | Learned location of Storage (-9) 1358 | -10/Mines | Excavation squad dispatched 1358 | -10/Mines | A large section of the Mines collapsed 1608 | -10/Mines | Excavation squad dispatched 1858 | -10/Mines | Excavation squad dispatched 2048 | -10/Mines | Discovered new exit (range 9) 2107 | -10/Mines | Identified exit to Materials 2125 | -10/Mines | Found a damaged Exp. Sensor Array with a note attached 2127 | -10/Mines | Found Prototype Device 2339 | -10/Mines | Entered Materials 2339 | -9/Materials | Accompanied by 1 ally 2339 | -9/Materials | Evolved 2 slots: Propulsion x1, Utility x1 2347 | -9/Materials | Led the pair of lost Derelicts to an unsafe place 2409 | -9/Materials | Lost 3 parts (2n1w) 2664 | -9/Materials | Lost 3 parts (1p1n1w) 2769 | -9/Materials | Identified Exp. Sensor Array 2904 | -9/Materials | Discovered new exit (range 16) 2925 | -9/Materials | Discovered new exit (range 13) 2979 | -9/Materials | Build established: Scavenger-Mutant 3030 | -9/Materials | Discovered new exit (range 8) 3367 | -9/Materials | Discovered new exit (range 9) 3539 | -9/Materials | First assault squad dispatched 3871 | -9/Materials | Entered Mines 3873 | -9/Mines | Core integrity fell below 50% 3989 | -9/Mines | Received a Rocket Launcher from a helpful Derelict 4015 | -9/Mines | Assembled infested the area 4039 | -9/Mines | Core integrity fell below 20% 4088 | -9/Mines | Discovered new exit (range 6) 4100 | -9/Mines | Entered Materials 4100 | -8/Materials | Evolved 2 slots: Utility x1, Weapon x1 4544 | -8/Materials | Garrison activated, responded to threat 5163 | -8/Materials | Discovered new exit (range 8) 5300 | -8/Materials | Build established: Scavenger-Gunner 5462 | -8/Materials | Discovered new exit (range 16) 5687 | -8/Materials | Build established: Scavenger-Tank 6482 | -8/Materials | Garrison activated, responded to threat 6580 | -8/Materials | Entered Factory 6580 | -7/Factory | Evolved 2 slots: Propulsion x1, Utility x1 6878 | -7/Factory | Build established: Scavenger-Skirmisher 6954 | -7/Factory | Discovered new exit (range 7) 6960 | -7/Factory | Identified exit to Lower Caves 7345 | -7/Factory | Build established: Tank 7648 | -7/Factory | Lost 3 parts (1n2w) 7886 | -7/Factory | Entered Lower Caves 7974 | -7/Lower Caves | Ambushed by wild Derelicts 8370 | -7/Lower Caves | Build established: Scavenger-Skirmisher 8431 | -7/Lower Caves | Learned Factory non-interactive machine intel 8680 | -7/Lower Caves | Build established: Scavenger-Mutant 8750 | -7/Lower Caves | Encountered a Warlord checkpoint 8757 | -7/Lower Caves | Spotted B-75 Beast 8877 | -7/Lower Caves | Discovered new exit (range 5) 8882 | -7/Lower Caves | Identified exit to Lower Caves 9039 | -7/Lower Caves | Entered another Lower Caves area 9089 | -7/Lower Caves | Discovered new exit (range 15) 9221 | -7/Lower Caves | Attracted the attention of an 0b10 outpost 9302 | -7/Lower Caves | Lost 6 parts (2n1u3w) 9307 | -7/Lower Caves | Destroyed 11 combat bots 9678 | -7/Lower Caves | Build established: Scavenger-Skirmisher 9982 | -7/Lower Caves | Discovered new exit (range 8) 10101 | -7/Lower Caves | Identified exit to Data Miner 10267 | -7/Lower Caves | Entered Data Miner 10267 | -7/Data Miner | Accompanied by 2 allies 10269 | -7/Data Miner | Discovered new exit (range 6) 10316 | -7/Data Miner | Met Data Miner 10365 | -7/Data Miner | Learned location of Section 7 (-2) 10365 | -7/Data Miner | Acquired the access code to Warlord's prototype stash 10401 | -7/Data Miner | Received God Mode back door access code from Data Miner 10498 | -7/Data Miner | Identified exit to Proximity Caves 10500 | -7/Data Miner | Entered Proximity Caves 10500 | -6/Proximity Caves | Accompanied by 2 allies 10791 | -6/Proximity Caves | Escorted by Enhanced Grunt 10802 | -6/Proximity Caves | Learned Factory emergency access door positions 10919 | -6/Proximity Caves | Found Prototype Device 10920 | -6/Proximity Caves | Identified Exp. Thermal Shield 11178 | -6/Proximity Caves | Learned location of 1 exit from Lower Caves 11270 | -6/Proximity Caves | Attracted the attention of an 0b10 outpost 11284 | -6/Proximity Caves | Core integrity fell below 50% 11324 | -6/Proximity Caves | Destroyed 12 combat bots 11328 | -6/Proximity Caves | Lost 4 parts (2n1u1w) 11357 | -6/Proximity Caves | Build established: Scavenger-Tank 11566 | -6/Proximity Caves | Discovered new exit (range 3) 11571 | -6/Proximity Caves | Identified exit to Factory 11576 | -6/Proximity Caves | Entered Factory 11576 | -6/Factory | Accompanied by 2 allies 11576 | -6/Factory | Evolved 2 slots: Utility x2 11578 | -6/Factory | Loaded intel: 216 non-interactive machine locations 11886 | -6/Factory | Build established: Scavenger-Skirmisher 12088 | -6/Factory | Garrison activated, responded to threat 12198 | -6/Factory | Lost 4 parts (1p1n1u1w) 12369 | -6/Factory | Incoming assault squad redirected 12597 | -6/Factory | Lost 9 parts (1p4n2u2w) 12638 | -6/Factory | Core integrity fell below 50% 12861 | -6/Factory | Discovered new exit (range 13) 12912 | -6/Factory | Lost 4 parts (1p1n2w) 13221 | -6/Factory | Build established: Mutant 13319 | -6/Factory | Discovered new exit (range 13) 14324 | -6/Factory | Sucked down chute 14324 | -6/Factory | Entered Waste 14325 | -6/Waste | Met a frightened Derelict 14338 | -6/Waste | Spotted C-40 Crusher 14361 | -6/Waste | Allies destroyed C-40 Crusher 14362 | -6/Waste | Spotted C-40 Crusher 14362 | -6/Waste | Spotted C-40 Crusher 14362 | -6/Waste | Spotted C-40 Crusher 14385 | -6/Waste | Crushed by Compactor (1 part destroyed, 1 dropped) 14386 | -6/Waste | Spotted C-40 Crusher 14386 | -6/Waste | Spotted C-40 Crusher 14388 | -6/Waste | Crushed by Compactor (1 part destroyed) 14389 | -6/Waste | Core integrity fell below 20% 14391 | -6/Waste | Crushed by Compactor (1 part destroyed) 14394 | -6/Waste | Crushed by Compactor (0 parts destroyed, 1 dropped) 14397 | -6/Waste | Crushed by Compactor (1 part destroyed) 14400 | -6/Waste | Crushed by Compactor (1 part destroyed) 14403 | -6/Waste | Crushed by Compactor (1 part destroyed) 14405 | -6/Waste | Destroyed by C-40 Crusher with Compactor Last Messages --------------- 14394_ F-cell Engine crushed. 14394_ Triangulator crushed. 14394_ Hvy. Mace crushed. 14396_ Microactuators crushed. 14396_ Matter Compressor crushed. 14396_ Microactuators crushed. 14397_ F-cell Engine crushed. 14397_ Imp. Cooling System crushed. 14397_ Adv. EMP Blaster crushed. 14397_ Plasma Cutter crushed. 14399_ Microactuators crushed. 14399_ Particle Charger crushed. 14399_ Imp. Shield Generator crushed. 14400_ Hvy. Mace crushed. 14400_ Critical hit (Destroy). 14400_ Hvy. Treads destroyed. 14401_ 1 Matter crushed. 14403_ Hvy. Mace crushed. 14403_ 0b10 Decoder Chip [Looter] destroyed. 14403_ Core Analyzer destroyed. Map ----- +----------------------------------------------------+ | ?????????????????????????????????????????????????? | | ?????????????????????????????????????????????????? | | ?????????????????????????????????????????????????? | | ?????????????????????????????????????????????????? | | ?????????????????????????????????????????????????? | | ?????????????????????????????????????????????????? | | ?????????????????????????????????????????????????? | | ????????????????????????????????????????!????????? | | ?????????????????????????????????????????????????? | | ?????????????????????????????????????????????????? | | ?????????????????????????????????????????????????? | | ?????????????????????????????????????????????????? | | ???????????????????????????????!?????????????????? | | ?????????????????????????????????????????????????? | | ???????????????????????????????????????????=?????? | | ?????????????????????????????????????????????????? | | ????????????????????????????????#????????????????? | | ??????????????????????????????? #????????????????? | | ??????????????????????????????? #????????????????? | | ?????????????????????????????? #????????????????? | | ?????????????############???? #????????????????? | | ?????????????# #???? #????????????????? | | ?????????????# #??? #????????????????? | | ?????????????# CC#### ########?????????? | | ?????????????# CC CC ????????? | | ?????????????# ! CC@CC ????????? | | ?????????????# CCCC ????????? | | ?????????????# CC CC ????????? | | ?????????????# ####CC ########?????????? | | ?????????????# #??? #????????????????? | | ?????????????# #???? #????????????????? | | ?????????????############???? #????????????????? | | ????????????????????????????!? #????????????????? | | ??????????????????????????????? #????????????????? | | ??????????????????????????????? #????????????????? | | ????????????????????????????????#????????????????? | | ?????????????????????????????????????????????????? | | ?????????????????????????????????????????????????? | | ?????????????????????????????????????????????????? | | ?????????????????????????????????????????????????? | | ?????????????????????????????????????????????????? | | ?????????????????????????????????????????????????? | | ?????????????????????????????????????????????????? | | ?????????????????????????????????????????????????? | | ?????????????????????????????????????????????????? | | ?????????????????????????????????????????????????? | | ?????????????????????????????????????????????????? | | ?????????????????????????????????????????????????? | | ?????????????????????????????????????????????????? | | ?????????????????????????????????????????????????? | +----------------------------------------------------+ Best States ------------- Heat Dissipation 88 Coolant Potential 65 Energy Generation 21 Energy Capacity 500 Matter Stores 300 Matter Capacity 300 Sight Range 16 Robot Scan Range 20 Terrain Scan Range 16 Terrain Scan Density 110 Armor Coverage 600 Melee Speed Boost 40 Evasion (%) 40 Targeting Accuracy 6 Melee Accuracy 8 Core Analysis 6 Recoil Reduction 4 Defensive Hacking 10 Item Schematics ----------------- Adv. System Restoration Module | -7/Factory | Hacked Combat Drone Bay | -7/Data Miner | Free Lgt. Regenerative Plating | -7/Data Miner | Free Cld. Cesium-ion Thruster | -7/Data Miner | Free Gravity Neutralizer | -7/Data Miner | Free Force Rifle | -7/Data Miner | Free Nuclear Pulse Array | -7/Data Miner | Free Adv. System Shield | -7/Data Miner | Free Remote Shield | -7/Data Miner | Free Imp. Thermal Shield | -7/Data Miner | Free Adv. Plasma Cannon | -7/Data Miner | Free Adv. Actuator Array | -7/Data Miner | Free Enh. Gauss Cannon | -7/Data Miner | Free Robot Schematics ------------------ L-41 Fighter | -7/Data Miner | Free B-48 Gladiator | -7/Data Miner | Free S-27 Virus | -7/Data Miner | Free Fabricated ------------ Nothing Alien Tech Used ----------------- None Achievements -------------- None Challenges ------------ None Game ------ Seed EnergyGrapheneSystem Manual? 0 Play Time 01:27:45 Cumulative 598.9 hours Start 2022.04.23 @ 20:41:55 End 2022.04.23 @ 22:38:01 Sessions 1 Manual Loads 0 Difficulty Rogue Special Mode None Game No. 569 Rogue 569 Adventurer 0 Explorer 0 Win Type - Total 21 Types 10/3/4/1/1/0/1/1/0 Lore% 88 Gallery% 94 Achievement% 77 Wizard Run 0 Options --------- ASCII 0 Keyboard 0 Movement Mouse Keybinds 1 Fullscreen 2 Font 24/Smallcaps Map View 76x50 Tactical HUD 1 Map Filters NONE Filters NONE Steam 1 RUN: af99b631-d915-41a1-8a89-a001899ac82d